bitfinex-derivatives/quotes_ETHF0:USTF0_20250331
["timestamp","ask_amount","ask_price","bid_price","bid_amount"]
[1743383215265,1.9201,1806.9,1806.7,3.2078]
[1743383215266,3.22445232,1806.8,1806.7,3.2078]
[1743383215465,4.33146232,1806.8,1806.5,4.31497]
[1743383215667,3.22445232,1806.7,1806.5,4.31497]
[1743383215861,3.22445232,1806.7,1806.6,1.10714]
[1743383216061,3.22445232,1806.7,1806.6,8.15791585]
[1743383216570,3.22445232,1806.7,1806.6,1.10714]
[1743383216763,0.00830197,1806.8,1806.7,1.10707]
[1743383216966,3.23275429,1806.8,1806.7,5.104]
[1743383217473,0.00830197,1806.8,1806.7,9.41887]
[1743383218166,3.23275429,1806.8,1806.7,3.2078]
[1743383218369,3.23275429,1806.8,1806.7,4.31487]
[1743383218569,3.23275429,1806.8,1806.7,3.2078]
[1743383218963,5.03405429,1806.8,1806.7,3.2078]
[1743383219164,5.03405429,1806.8,1806.7,4.31487]
[1743383219566,1.80960197,1806.8,1806.7,1.10707]
[1743383219868,1.80960197,1806.8,1806.3,4.31508]
[1743383219869,1.10716,1806.6,1806.3,4.31508]
[1743383220066,8.24185429,1806.8,1806.1,0.5536]
[1743383220067,5.1623,1806.5,1806.1,0.5536]
[1743383220267,1.9545,1806.5,1806.3,1.10731]
[1743383220467,3.22445232,1806.4,1806.3,1.10731]
[1743383220773,1.9545,1806.5,1806.4,1.10726]
[1743383221075,5.17895232,1806.5,1806.4,1.10726]
[1743383221368,5.17895232,1806.5,1806.4,7.18742589]
[1743383221575,5.17895232,1806.5,1806.3,6.21228]
[1743383221766,5.17895232,1806.5,1806.4,1.10726]
[1743383221961,0.00830197,1806.8,1806.3,7.605]
[1743383222274,0.00830197,1806.8,1806.7,4.31487]
[1743383222462,3.06111,1807.5,1806.7,8.3528]
[1743383222463,1.9545,1807.5,1806.7,8.3528]
[1743383222669,1.1068,1807.2,1806.9,1.10695]
[1743383222868,6.43225232,1807.4,1807.0,1.10689]
[1743383222869,5.11125232,1807.1,1807.0,1.10689]
[1743383223072,5.1348,1807.4,1807.3,1.10671]
[1743383223073,1.927,1807.4,1807.3,1.10671]
[1743383223269,6.20116,1807.6,1807.3,1.10666]
[1743383223569,0.00830197,1807.5,1807.2,5.15930197]
[1743383223772,3.23275429,1807.5,1807.2,5.15930197]
[1743383223969,1.8868,1807.4,1807.3,1.10671]
[1743383224364,1.8868,1807.4,1807.3,8.43444226]
[1743383224967,0.00830197,1807.5,1807.4,1.10665]
[1743383225172,0.00830197,1807.5,1807.4,6.22905]
[1743383225374,0.00830197,1807.5,1807.4,8.32363764]
[1743383225877,0.00830197,1807.5,1807.4,11.53143764]
[1743383226076,5.035,1808.3,1807.8,1.1064]
[1743383226274,1.926,1808.2,1807.8,9.4522]
[1743383226471,3.32990481,1807.9,1807.8,12.48122557]
[1743383226671,3.32990481,1807.9,1807.8,7.34322557]
[1743383226871,3.32990481,1807.9,1807.3,5.161]
[1743383227067,1.8272,1808.3,1807.8,4.3142]
[1743383227280,3.22445232,1808.3,1808.2,1.10616]
[1743383227476,3.2078,1808.4,1808.3,1.10609]
[1743383227675,6.43777085,1808.4,1808.3,1.10609]
[1743383227871,3.21331853,1808.4,1808.3,1.10609]
[1743383228071,3.2078,1809.6,1808.7,2.76451]
[1743383228277,1.926,1809.3,1808.9,1.10571]
[1743383228578,1.926,1809.3,1809.2,1.10554]
[1743383228774,3.2078,1810.5,1810.1,1.10497]
[1743383228973,1.9063,1810.4,1810.3,1.10485]
[1743383229178,3.22445232,1810.8,1810.3,8.4478]
[1743383229375,5.13075232,1810.8,1810.3,7.06759775]
[1743383229681,3.22445232,1810.7,1810.3,5.252]
[1743383229880,1.9063,1810.6,1810.4,0.5528]
[1743383230074,1.9063,1810.6,1810.5,1.10475]
[1743383230075,5.13075232,1810.6,1810.5,1.10475]
[1743383230275,1.9063,1810.6,1810.4,0.5528]
[1743383230473,3.22445232,1810.5,1810.4,1.65761]
[1743383230984,8.93225232,1810.5,1810.1,0.00830197]
[1743383231190,3.2078,1810.2,1809.6,3.2078]
[1743383231476,5.13075232,1810.4,1809.0,2.76413]
[1743383231477,3.2078,1809.7,1809.1,5.264]
[1743383231780,1.7775,1809.6,1809.5,1.10536]
[1743383231983,1.7775,1809.6,1809.1,18.71887851]
[1743383232171,5.00195232,1809.6,1809.5,1.10536]
[1743383232384,1.7775,1809.6,1809.5,6.40836]
[1743383232684,1.7775,1809.6,1809.5,1.10536]
[1743383232979,1.7775,1809.6,1809.5,4.31316]
[1743383232980,5.00195232,1809.6,1809.5,4.31316]
[1743383233186,5.00195232,1809.6,1809.2,1.95890197]
[1743383233187,5.00195232,1809.6,1809.2,3.21610197]
[1743383233375,3.2078,1810.8,1809.6,2.76324]
[1743383233572,3.2078,1810.5,1810.0,3.2078]
[1743383233775,1.7775,1810.4,1810.0,3.2078]
[1743383233979,6.10677232,1810.4,1810.0,4.31283]
[1743383234178,3.22445232,1810.3,1810.0,4.31282]
[1743383234382,1.7775,1810.2,1810.0,3.2078]
[1743383234579,5.00195232,1810.2,1810.1,3.2078]
[1743383234778,3.22445232,1810.1,1809.3,0.5528]
[1743383234980,1.942,1810.0,1809.7,3.2078]
[1743383235275,5.16645232,1810.0,1809.8,4.31294]
[1743383235479,3.22445232,1809.9,1809.8,8.12328615]
[1743383235685,5.16645232,1809.9,1809.8,11.33108615]
[1743383235886,5.16645232,1809.9,1809.8,3.2078]
[1743383236181,6.27157232,1809.9,1809.7,0.00830197]
[1743383236386,3.22445232,1809.8,1809.7,0.00830197]
[1743383236680,5.16645232,1809.8,1809.7,0.00830197]
[1743383236981,1.942,1809.8,1809.7,0.00830197]
[1743383237182,6.27163232,1809.8,1809.7,0.00830197]
[1743383237376,5.16645232,1809.8,1809.7,1.11354197]
[1743383237578,1.10554,1809.2,1808.8,4.31357]
[1743383237777,1.1057,1809.0,1808.7,0.5528]
[1743383237983,2.76326,1809.6,1808.8,3.2078]
[1743383237984,1.10546,1809.4,1808.8,3.2078]
[1743383238177,3.2078,1809.4,1808.8,6.24516]
[1743383238377,1.10557,1809.2,1808.8,6.24515]
[1743383238574,2.11885232,1809.3,1808.9,0.5528]
[1743383238778,4.31347,1809.0,1808.9,7.10495476]
[1743383238979,4.31347,1809.0,1808.3,3.2078]
[1743383238980,3.2078,1809.0,1808.3,3.2078]
[1743383239184,3.2078,1809.0,1808.2,0.5536]
[1743383239185,3.2078,1808.8,1808.2,0.5536]
[1743383239385,3.2078,1808.8,1808.2,3.7614]
[1743383239581,0.88119559,1808.7,1808.3,7.10495476]
[1743383239882,0.88119559,1808.8,1808.5,1.10597]
[1743383240091,1.10582,1808.8,1808.4,1.9316]
[1743383240279,0.88119559,1808.7,1808.6,1.10591]
[1743383240479,0.88119559,1808.7,1808.4,1.9316]
[1743383240480,0.88119559,1808.7,1808.5,1.10595]
[1743383240681,0.88119559,1808.6,1808.4,3.03759]
[1743383240881,0.88119559,1808.7,1808.5,1.10596]
[1743383241083,1.98705559,1808.7,1808.4,3.0376]
[1743383241285,0.88119559,1808.6,1808.5,1.10597]
[1743383241486,0.88119559,1808.7,1808.4,5.1394]
[1743383241692,0.88119559,1808.7,1808.4,3.2078]
[1743383241895,0.88119559,1808.7,1808.3,0.00830197]
[1743383241896,1.10603,1808.4,1808.3,0.00830197]
[1743383242082,1.10631,1808.0,1807.7,4.86782]
[1743383242287,1.8026,1807.9,1807.8,1.1064]
[1743383242485,2.67549362,1807.9,1807.8,1.1064]
[1743383242797,0.87289362,1807.9,1807.8,2.9476]
[1743383242984,2.76494,1808.5,1807.8,8.95581]
[1743383242985,3.2078,1808.5,1807.8,8.95581]
[1743383243191,0.87289362,1808.4,1808.3,4.31389]
[1743383243382,2.90846,1808.7,1808.3,3.2078]
[1743383243584,0.00830197,1808.5,1808.4,1.9096]
[1743383243992,0.88119559,1808.5,1808.4,6.22343]
[1743383244493,0.88119559,1808.5,1808.4,5.1174]
[1743383244797,0.00830197,1808.5,1808.4,6.22343]
[1743383245289,1.9159,1809.2,1808.9,1.10569]
[1743383245290,1.924,1809.1,1808.9,1.10569]
[1743383245492,3.90250362,1809.1,1809.0,5.1174]
[1743383245687,3.02961,1809.1,1809.0,1.9096]
[1743383245888,3.02961,1809.1,1808.5,3.2078]
[1743383245889,5.29689362,1809.1,1808.5,3.2078]
[1743383246089,0.87289362,1809.0,1808.6,5.1174]
[1743383246386,0.88119559,1809.0,1808.7,1.9096]
[1743383246586,0.87289362,1808.9,1808.7,1.9096]
[1743383246792,2.78539362,1808.9,1808.7,1.9096]
[1743383247097,0.87289362,1808.8,1808.7,1.9096]
[1743383247297,1.97868362,1808.8,1808.7,1.9096]
[1743383248499,0.87289362,1808.8,1808.7,1.9096]
[1743383248692,1.97868362,1808.8,1808.7,1.9096]
[1743383248893,3.21610197,1809.0,1808.7,1.9096]
[1743383248894,0.00830197,1809.0,1808.9,1.10573]
[1743383249197,0.00830197,1809.0,1808.9,4.31353]
[1743383249397,0.00830197,1809.0,1808.9,11.53789319]
[1743383249895,0.88119559,1809.0,1808.9,4.31353]
[1743383250100,0.88119559,1809.0,1808.9,3.2078]
[1743383250394,1.98686559,1809.0,1808.9,3.2078]
[1743383250593,1.98686559,1809.0,1808.7,8.44944]
[1743383250793,1.97862362,1808.9,1808.8,3.2078]
[1743383250994,3.86402362,1808.9,1808.7,7.3436]
[1743383251194,0.87289362,1808.8,1808.7,8.44943]
[1743383251390,0.87289362,1808.9,1808.8,1.10574]
[1743383251991,1.97864362,1808.9,1808.7,8.44943]
[1743383252196,0.87289362,1808.8,1808.7,8.44945]
[1743383252399,0.87289362,1808.9,1808.7,8.44941]
[1743383252596,3.87483362,1808.9,1808.7,8.44941]
[1743383252898,1.97868362,1808.8,1808.7,7.3436]
[1743383253100,0.87289362,1808.8,1808.7,8.44945]
[1743383253290,0.86459165,1808.7,1808.0,1.8483]
[1743383253494,1.10611,1808.3,1808.1,1.10619]
[1743383253697,1.10611,1808.3,1808.1,3.53759]
[1743383253901,0.86459165,1808.2,1808.1,2.98399]
[1743383254202,1.8962,1808.4,1808.3,1.10609]
[1743383254203,0.86459165,1808.4,1808.3,1.10609]
[1743383254400,1.10601,1808.5,1808.3,1.10609]
[1743383254798,0.86459165,1808.4,1808.3,1.10609]
[1743383254994,1.8962,1808.6,1808.5,1.10597]
[1743383255194,3.21610197,1809.0,1808.5,3.2078]
[1743383255394,1.97035165,1808.9,1808.7,4.31363]
[1743383255903,1.10596,1808.6,1808.5,6.43117795]
[1743383256201,1.10609,1808.3,1808.2,0.00830197]
[1743383256507,1.10609,1808.3,1807.3,12.88974]
[1743383256508,2.7657,1808.0,1807.3,1.10667]
[1743383256699,2.7657,1808.0,1807.2,8.5828]
[1743383256700,1.1066,1807.5,1807.4,0.5536]
[1743383256899,3.2078,1807.9,1807.4,4.86802]
[1743383257100,1.1065,1807.7,1807.4,0.5536]
[1743383257305,1.9156,1807.6,1807.4,0.5536]
[1743383257606,1.10658,1807.5,1807.4,0.00830197]
[1743383257803,4.31438,1807.5,1807.4,0.00830197]
[1743383258102,6.81438,1807.5,1807.4,0.00830197]
[1743383258305,11.58298,1807.5,1807.4,0.00830197]
[1743383258611,11.58298,1807.5,1806.9,1.10692]
[1743383258612,1.10677,1807.2,1806.9,1.10692]
[1743383258802,1.10693,1807.0,1806.8,0.5536]
[1743383259002,2.76756,1806.8,1806.2,3.2078]
[1743383259202,2.76756,1806.8,1805.2,1.97148796]
[1743383259203,3.2078,1806.3,1805.6,0.5536]
[1743383259508,3.2078,1806.1,1805.5,3.7614]
[1743383259808,1.11578197,1806.1,1805.8,0.00553464]
[1743383259998,1.11575197,1806.1,1805.8,0.00553464]
[1743383260410,1.11577197,1806.1,1805.8,0.00553464]
[1743383260604,1.10751,1806.0,1805.8,0.00553464]
[1743383260912,1.10752,1806.0,1805.8,0.00553464]
[1743383261101,3.03048197,1806.1,1805.8,0.00553464]
[1743383261299,3.2078,1806.7,1805.9,10.25969527]
[1743383261496,1.9147,1806.6,1806.0,3.2078]
[1743383261812,3.02186,1806.6,1806.2,1.10736]
[1743383262001,1.10723,1806.5,1806.1,7.2510109]
[1743383262194,1.8338,1806.5,1806.1,1.10744]
[1743383262394,2.94930197,1806.5,1806.1,1.10744]
[1743383262608,1.84210197,1806.5,1806.2,1.10738]
[1743383262803,1.84210197,1806.5,1806.2,1.10736]
[1743383263005,1.10715,1806.6,1806.2,1.10736]
[1743383263304,1.10718,1806.6,1806.0,3.2078]
[1743383263605,3.2078,1806.7,1806.0,3.2078]
[1743383263805,1.10726,1806.4,1806.1,7.12134548]
[1743383264006,1.10728,1806.4,1806.1,7.12134548]
[1743383264204,0.00830197,1806.4,1806.1,7.12134548]
[1743383264406,0.00830197,1806.4,1806.0,3.2078]
[1743383264814,0.00830197,1806.4,1806.2,1.10736]
[1743383265004,0.00830197,1806.4,1806.2,4.31516]
[1743383265202,3.2078,1807.4,1806.3,7.13717452]
[1743383265399,1.10678,1807.2,1806.9,4.31472]
[1743383265605,1.10675,1807.3,1806.9,4.31472]
[1743383265903,1.10676,1807.3,1806.9,3.2078]
[1743383266104,4.31425,1807.8,1807.1,3.2078]
[1743383266305,3.2078,1807.8,1807.4,1.10661]
[1743383266503,0.00830197,1807.6,1807.3,3.2078]
[1743383266710,1.11485197,1807.6,1807.3,4.31449]
[1743383266906,0.00830197,1807.6,1807.3,3.2078]
[1743383267107,0.00830197,1807.6,1807.4,1.10665]
[1743383268009,0.00830197,1807.6,1807.5,1.8524]
[1743383268407,1.11482197,1807.6,1807.5,1.8524]
[1743383268609,0.00830197,1807.6,1807.5,1.8524]
[1743383268911,0.00830197,1807.6,1807.5,2.95898]
[1743383269111,0.00830197,1807.6,1807.5,6.16678]
[1743383270513,3.2078,1808.6,1808.1,1.10616]
[1743383270707,2.8431,1808.5,1808.0,1.10622]
[1743383270903,1.1061,1808.3,1808.0,1.10622]
[1743383271105,2.8431,1808.5,1807.8,4.31418]
[1743383271322,3.2078,1808.2,1807.6,3.2078]
[1743383271514,1.10643,1807.8,1807.6,3.2078]
[1743383271818,1.10643,1807.8,1807.7,0.00830197]
[1743383272410,6.81423,1807.8,1807.7,0.00830197]
[1743383272611,0.9384,1807.9,1807.7,0.00830197]
[1743383272913,1.1064,1807.8,1807.7,0.00830197]
[1743383273110,1.10637,1807.9,1807.7,0.00830197]
[1743383273313,2.81070197,1808.1,1807.7,0.00830197]
[1743383273512,1.1064,1807.8,1807.7,0.00830197]
[1743383274515,2.0445,1807.8,1807.7,0.00830197]
[1743383276213,1.10636,1807.9,1807.7,0.00830197]
[1743383276521,1.10638,1807.9,1807.7,1.81370197]
[1743383276829,0.00830197,1808.1,1807.8,3.2078]
[1743383277120,0.00830197,1808.1,1808.0,4.31408]
[1743383277822,1.10601,1808.5,1808.2,1.1061]
[1743383278014,1.10604,1808.4,1808.2,3.2078]
[1743383278212,1.10622,1808.1,1808.0,3.2078]
[1743383278411,5.245,1808.4,1807.8,3.2078]
[1743383278617,1.10633,1808.0,1807.8,3.2078]
[1743383278914,1.10626,1808.1,1807.8,4.3142]
[1743383279116,1.11456197,1808.1,1807.8,4.31416]
[1743383279420,0.00830197,1808.1,1807.9,1.10631]
[1743383279718,1.11455197,1808.1,1807.8,4.31415]
[1743383279919,0.00830197,1808.1,1807.8,3.2078]
[1743383280120,1.11456197,1808.1,1807.9,1.10633]
[1743383280316,1.10634,1807.9,1807.8,3.2078]
[1743383280517,1.1064,1807.8,1807.7,0.00830197]
[1743383281825,1.10638,1807.9,1807.7,0.00830197]
[1743383282123,1.1064,1807.8,1807.7,0.00830197]
[1743383282322,1.1064,1807.8,1807.7,1.85360197]
[1743383283215,5.22130197,1808.1,1807.7,1.85360197]
[1743383283216,0.00830197,1808.1,1807.7,1.85360197]
[1743383283524,1.11452197,1808.1,1808.0,3.2078]
[1743383283722,1.1064,1807.8,1807.7,0.00830197]
[1743383283921,4.3142,1807.8,1807.7,0.00830197]
[1743383284124,1.10652,1807.6,1807.5,1.9808]
[1743383285223,1.10658,1807.5,1807.4,0.00830197]
[1743383285817,1.8242,1807.8,1807.4,0.00830197]
[1743383286418,1.10658,1807.5,1807.4,0.00830197]
[1743383286634,1.10654,1807.6,1807.4,4.32274197]
[1743383286834,1.10654,1807.6,1807.5,1.8543]
[1743383287242,1.10658,1807.5,1807.4,0.00830197]
[1743383287536,7.37498,1807.5,1807.4,0.00830197]
[1743383287734,1.10677,1807.2,1807.1,1.8543]
[1743383288432,1.10674,1807.3,1807.1,5.0621]
[1743383288631,3.2078,1807.6,1807.1,5.0621]
[1743383288632,4.3012,1807.6,1807.2,2.96103]
[1743383288829,1.8242,1807.8,1807.2,9.11458301]
[1743383289235,4.3027,1807.7,1807.2,1.8543]
[1743383289532,1.10671,1807.3,1807.2,1.8543]
[1743383289731,1.10683,1807.1,1807.0,0.00830197]
[1743383289928,1.10707,1806.7,1806.6,0.5536]
[1743383290127,1.0949,1807.0,1806.6,1.9024]
[1743383290331,1.10698,1806.9,1806.6,3.00949]
[1743383290532,1.10699,1806.9,1806.7,1.9024]
[1743383290734,1.1068,1807.2,1806.9,1.10692]
[1743383291027,1.10656,1807.6,1807.3,1.10667]
[1743383291224,1.1066,1807.5,1807.4,1.9024]
[1743383291430,1.11485197,1807.6,1807.4,1.9024]
[1743383291736,1.10658,1807.5,1807.4,1.9024]
[1743383294040,1.10671,1807.3,1807.2,3.2078]
[1743383294535,1.0949,1807.4,1807.2,3.2078]
[1743383294732,2.20155,1807.4,1807.3,1.9918]
[1743383295133,1.11486197,1807.6,1807.3,1.9918]
[1743383295328,0.00830197,1807.6,1807.4,1.10664]
[1743383295640,1.10671,1807.3,1807.2,3.2078]
[1743383296032,1.095,1807.5,1807.2,4.31454]
[1743383296326,1.10669,1807.4,1807.3,1.8086]
[1743383296531,0.00830197,1807.6,1807.5,1.10658]
[1743383296732,3.2078,1808.4,1807.9,1.10632]
[1743383297035,3.2078,1808.4,1807.6,8.3548]
[1743383297036,1.10619,1808.2,1807.6,8.3548]
[1743383297335,4.3028,1808.4,1807.9,3.2078]
[1743383297540,1.10618,1808.2,1807.9,3.2078]
[1743383297836,3.6881,1808.5,1808.3,1.10608]
[1743383297837,2.91499,1808.5,1808.3,1.10608]
[1743383298039,2.91499,1808.5,1808.1,3.2078]
[1743383298040,0.00830197,1808.2,1808.0,15.5031429]
[1743383298339,0.00830197,1808.2,1807.9,0.00830197]
[1743383298742,1.10628,1808.0,1807.9,0.00830197]
[1743383300042,1.10628,1808.0,1807.9,1.84910197]
[1743383300351,0.00830197,1808.2,1807.9,1.84910197]
[1743383300534,1.10622,1808.1,1808.0,3.2078]
[1743383300736,1.11449197,1808.2,1808.0,6.15487]
[1743383300936,0.00830197,1808.2,1808.1,1.10622]
[1743383301237,1.11447197,1808.2,1808.0,6.9921]
[1743383301437,1.10622,1808.1,1808.0,5.0486]
[1743383302041,1.11449197,1808.2,1808.0,5.0486]
[1743383302438,0.00830197,1808.2,1808.0,5.0486]
[1743383302940,1.10622,1808.1,1808.0,5.0486]
[1743383303342,1.10628,1808.0,1807.9,0.00830197]
[1743383303536,2.20958,1808.0,1807.9,0.00830197]
[1743383303842,2.20958,1808.0,1807.7,1.8701]
[1743383303843,2.76652,1807.5,1807.0,8.8774]
[1743383304039,1.10675,1807.3,1807.1,1.8701]
[1743383304240,1.10677,1807.2,1807.1,1.8701]
[1743383305339,2.20947,1807.2,1807.1,1.8701]
[1743383306138,7.83572,1807.6,1807.1,1.8701]
[1743383306139,5.0693,1807.6,1807.1,1.8701]
[1743383306339,1.8615,1807.6,1807.1,5.0779]
[1743383306545,1.10669,1807.4,1807.1,6.18471]
[1743383306849,1.1067,1807.4,1807.2,1.987]
[1743383307348,1.8615,1807.6,1807.2,1.987]
[1743383307349,1.10671,1807.3,1807.2,1.987]
[1743383307648,2.96805,1807.6,1807.3,1.10671]
[1743383307946,1.10658,1807.5,1807.4,1.8991]
[1743383308344,1.10652,1807.6,1807.4,5.1069]
[1743383308547,3.2078,1807.8,1807.4,5.1069]
[1743383308747,1.10654,1807.6,1807.4,5.1069]
[1743383309047,1.9457,1808.0,1807.4,5.1069]
[1743383309250,1.9457,1808.0,1807.5,3.2078]
[1743383309548,3.2078,1807.6,1807.0,0.00830197]
[1743383309842,1.10671,1807.3,1807.2,1.8991]
[1743383310236,3.2078,1807.8,1807.2,1.8991]
[1743383310442,1.10671,1807.3,1807.2,1.8991]
[1743383311340,4.3105,1807.6,1807.2,1.8991]
[1743383311548,1.10667,1807.4,1807.2,1.8991]
[1743383311847,1.10671,1807.3,1807.2,1.8991]
[1743383312043,1.1027,1807.6,1807.5,1.10658]
[1743383312249,7.0277,1808.0,1807.3,3.2078]
[1743383312443,1.10648,1807.7,1807.4,3.09039]
[1743383312649,1.10648,1807.7,1807.5,1.10655]
[1743383312650,1.10646,1807.7,1807.5,1.10655]
[1743383312846,1.10646,1807.7,1807.6,1.9838]
[1743383313051,10.2089,1808.1,1807.6,1.9838]
[1743383313248,6.24216,1808.1,1807.8,1.10637]
[1743383313445,0.00830197,1808.2,1807.9,5.1916]
[1743383313641,1.11450197,1808.2,1807.9,6.29794]
[1743383314038,1.10623,1808.1,1807.9,6.29794]
[1743383314243,1.10622,1808.1,1807.9,6.29794]
[1743383314448,1.10622,1808.1,1807.9,5.1916]
[1743383314649,1.10622,1808.1,1807.9,6.29793]
[1743383314844,1.10628,1808.0,1807.9,5.1916]
[1743383315050,0.00830197,1808.2,1807.9,1.9838]
[1743383315244,0.00830197,1808.2,1807.9,5.1916]
[1743383315546,0.00830197,1808.2,1807.9,1.9838]
[1743383315751,1.10628,1808.0,1807.9,1.9838]
[1743383315951,1.10628,1808.0,1807.8,3.2078]
[1743383315952,1.10648,1807.7,1807.5,3.2078]
[1743383316252,1.10648,1807.7,1807.6,2.0186]
[1743383316444,1.10645,1807.8,1807.6,2.0186]
[1743383316645,6.176,1808.1,1807.7,3.2078]
[1743383316845,1.10634,1807.9,1807.8,1.8546]
[1743383317552,1.10652,1807.6,1807.5,3.2078]
[1743383318057,2.76622,1807.7,1807.2,2.4293]
[1743383318245,5.039,1807.7,1807.2,1.8757]
[1743383318445,1.10655,1807.6,1807.3,1.10666]
[1743383318651,2.76589,1807.9,1807.4,4.3144]
[1743383318652,8.2428,1807.9,1807.4,4.3144]
[1743383318949,1.1065,1807.7,1807.4,4.3144]
[1743383319154,1.132,1807.9,1807.4,4.3144]
[1743383319155,1.10652,1807.6,1807.5,1.8546]
[1743383319556,2.76609,1807.8,1807.2,3.2078]
[1743383319756,1.10665,1807.4,1807.3,1.8635]
[1743383320555,1.10671,1807.3,1807.2,3.2078]
[1743383320862,2.23851,1807.3,1807.2,3.2078]
[1743383321658,1.10677,1807.2,1807.1,1.8635]
[1743383323166,1.8554,1807.8,1807.1,4.3635]
[1743383323371,25.26153175,1808.0,1807.4,3.2078]
[1743383323565,25.26153175,1808.0,1807.5,1.9696]
[1743383323870,1.10652,1807.6,1807.5,1.9696]
[1743383325058,5.97372,1807.9,1807.2,4.31455]
[1743383325059,1.10665,1807.4,1807.2,4.31455]
[1743383325263,2.76601,1807.8,1807.2,3.2078]
[1743383325465,1.1066,1807.5,1807.3,1.9696]
[1743383325659,1.1066,1807.5,1807.3,3.07631]
[1743383325867,1.10649,1807.7,1807.5,1.10657]
[1743383326170,3.2078,1807.9,1807.4,5.1091]
[1743383326764,3.2078,1807.9,1807.8,1.1064]
[1743383326972,19.13273175,1808.0,1807.8,1.1064]
[1743383327165,4.31408,1808.0,1807.9,1.9013]
[1743383327360,19.14103372,1808.2,1807.9,1.9013]
[1743383327563,1.10628,1808.0,1807.9,1.9013]
[1743383329161,1.10634,1807.9,1807.8,3.2078]
[1743383329363,1.10652,1807.6,1807.5,2.0174]
[1743383329564,1.1311,1807.9,1807.5,5.2252]
[1743383330272,3.8128,1808.1,1807.5,5.2252]
[1743383330567,1.10651,1807.7,1807.5,5.2252]
[1743383330772,1.10651,1807.7,1807.5,6.33178]
[1743383331167,8.8528,1808.0,1807.5,5.2252]
[1743383331474,8.85281,1808.0,1807.5,5.2252]
[1743383331774,1.10652,1807.6,1807.5,5.2252]
[1743383332178,1.10652,1807.6,1807.5,2.0174]
[1743383333673,4.929,1808.0,1807.7,1.10642]
[1743383333865,1.10634,1807.9,1807.8,1.9369]
[1743383334269,1.8935,1808.1,1807.8,1.9369]
[1743383334470,1.10628,1808.0,1807.8,3.04328]
[1743383334676,1.10628,1808.0,1807.9,1.9369]
[1743383335676,2.76586,1807.9,1807.3,1.9056]
[1743383335870,1.10664,1807.5,1807.4,1.8781]
[1743383336577,4.3396,1807.9,1807.4,1.8781]
[1743383336769,3.2078,1807.9,1807.5,1.10656]
[1743383336981,1.10646,1807.7,1807.6,1.8781]
[1743383338678,4.886,1808.1,1807.6,5.0859]
[1743383338981,1.1615,1808.1,1807.7,1.10646]
[1743383339176,6.0445,1808.1,1807.7,1.9188]
[1743383339680,1.1064,1807.8,1807.7,1.9188]
[1743383340380,0.00830197,1808.2,1807.7,1.9188]
[1743383340580,0.00830197,1808.2,1808.1,1.10622]
[1743383340889,12.16133175,1808.4,1808.3,1.10609]
[1743383341085,12.16133175,1808.4,1808.3,4.31389]
[1743383341284,12.16133175,1808.4,1808.1,3.2078]
[1743383341478,1.10622,1808.1,1808.0,1.8295]
[1743383341674,1.10634,1807.9,1807.8,3.2078]
[1743383341975,2.76553,1808.2,1807.4,55.77]
[1743383341976,5.226,1808.0,1807.4,3.2078]
[1743383342283,1.10658,1807.5,1807.4,3.2078]
[1743383342478,1.10654,1807.6,1807.4,3.2078]
[1743383342685,1.10658,1807.5,1807.4,3.2078]
[1743383342884,6.8862,1807.8,1807.4,3.2078]
[1743383343087,1.10658,1807.5,1807.4,3.21610197]
[1743383343386,1.10658,1807.5,1807.4,0.00830197]
[1743383345080,1.10655,1807.6,1807.4,3.21610197]
[1743383345381,1.10655,1807.6,1807.5,1.8423]
[1743383345592,2.0182,1807.8,1807.5,1.8423]
[1743383346081,1.10647,1807.7,1807.5,2.94888]
[1743383346286,10.0512,1808.1,1807.6,3.2078]
[1743383346486,1.1064,1807.8,1807.7,1.8423]
[1743383347180,1.10637,1807.9,1807.7,1.8423]
[1743383347390,1.976,1808.0,1807.7,1.8423]
[1743383347580,1.1064,1807.8,1807.7,1.8423]
[1743383347786,2.76614,1807.8,1807.4,0.00830197]
[1743383347986,1.10658,1807.5,1807.4,0.00830197]
[1743383349093,1.10643,1807.8,1807.5,1.10656]
[1743383349295,1.10646,1807.7,1807.6,1.9645]
[1743383350894,27.4352245,1808.0,1807.4,0.00830197]
[1743383350895,5.97389,1807.8,1807.4,0.00830197]
[1743383351098,1.10658,1807.5,1807.4,0.00830197]
[1743383351491,10.0198,1807.6,1807.1,3.2078]
[1743383351690,3.2078,1807.3,1806.7,3.2078]
[1743383351885,5.97503,1807.0,1806.4,5.2292]
[1743383352090,1.10729,1806.4,1806.1,33.94561]
[1743383352292,1.10727,1806.4,1806.1,33.94561]
[1743383352487,1.10723,1806.5,1806.2,1.10736]
[1743383352683,3.2078,1806.8,1806.3,4.31508]
[1743383352684,0.00830197,1806.4,1806.3,4.31508]
[1743383353102,0.00830197,1806.4,1806.3,3.2078]
[1743383353291,0.00830197,1806.4,1806.3,4.31512]
[1743383353793,3.2078,1807.1,1806.5,1.10716]
[1743383353987,3.2078,1807.1,1806.3,7.06096652]
[1743383354188,2.76739,1806.9,1806.4,2.0131]
[1743383354388,1.1072,1806.5,1806.4,2.0131]
[1743383354894,1.10732,1806.4,1806.1,0.00830197]
[1743383355095,6.80980197,1806.6,1806.2,2.0131]
[1743383355283,1.10732,1806.3,1806.2,2.0131]
[1743383355688,1.10724,1806.5,1806.2,2.0131]
[1743383355884,0.00830197,1806.6,1806.3,1.10727]
[1743383356087,1.11544197,1806.6,1806.4,2.0131]
[1743383356482,1.1072,1806.5,1806.4,2.0131]
[1743383356692,1.87290197,1806.6,1806.4,2.0131]
[1743383356894,1.1072,1806.5,1806.4,2.0131]
[1743383357296,1.10738,1806.2,1806.1,0.00830197]
[1743383357492,1.10738,1806.2,1806.1,3.21610197]
[1743383357697,4.82830197,1806.6,1806.1,3.21610197]
[1743383357894,1.10727,1806.4,1806.2,1.8644]
[1743383358404,1.11546197,1806.6,1806.3,1.10729]